{"text_format":"1","workbook":"xlsx","n_sheets":1,"sheets":["Yhtälöt"],"not_rendered":{"charts":0,"images":0,"macros":1,"external_links":0,"defined_names":1,"comments":0,"pivot_tables":0},"unopened":[],"bounds":{"document_bytes":16777216,"sheet_cells":100000,"rows_first":2000,"rows_last":500,"rows_between":2000,"halvings":0,"cell_chars":16384,"cell_head_chars":4096},"cells_cut":0,"cells_raw":0,"read":"whole","date_system":"1900"}

{"sheet":"Yhtälöt","index":0,"n_rows":64,"n_cols":76,"rows_kept":64,"cut":false,"hidden":false,"merged":[[3,12,3,14],[16,0,16,5],[19,0,19,14],[41,15,42,15],[41,16,42,16],[30,1,30,11],[31,1,31,11],[21,1,21,11],[22,1,22,11],[23,1,23,11],[24,1,24,11],[25,1,25,11],[26,1,26,11],[19,21,19,22],[18,15,18,22],[19,16,20,16],[51,0,51,14],[27,1,27,11],[28,1,28,11],[41,17,41,18],[41,19,41,20],[19,19,19,20],[19,15,20,15],[19,17,19,18],[53,0,53,14],[49,0,49,14],[50,0,50,14],[41,21,41,22],[29,1,29,11],[32,1,32,11],[33,1,33,11],[34,1,34,11],[40,1,40,11],[35,1,35,11],[36,1,36,11],[37,1,37,11],[38,1,38,11],[39,1,39,11],[52,0,52,14],[0,21,0,22],[2,0,2,14],[0,15,1,15],[0,16,1,16],[0,17,0,18],[0,19,0,20],[0,0,0,14],[1,0,1,1],[1,3,1,4],[1,5,1,6]]}
["Tällä excelillä saat tulostettua 40 satunnaista sanallista yhtälötehtävää.\nTarkempia lisenssiasioita ja tekijän yhteystiedot löytyvät lopusta tehtävien jälkeen.\n\n",null,null,null,null,null,null,null,null,null,null,null,null,null,null,"Tehtävä-tyypin numero","Vastaus-arpa\n(joskus vastaus)","Kertoimia, nollaton",null,"Yhteenlaskettavia numeroita",null,"Pikkukerroin"]
["Versio",null,"2.2","Julkaistu",null,"2018-12-12",null,null,null,null,null,null,null,null,null,null,null,1,2,1,2,1,2,"Tehtävä","Vastaus"]
["Arvonta näppäimillä  CTRL+k.\nTämän jälkeen muutoksia voi tehdä tehtävien oikealle puolelle."]
["Vastausalkio sivu1",null,null,"Min",-10,"Max",10,null,"Sivu1","Sivu2","Sivu3","Sivu4","Yhtälötyypppi",null,null,null,null,null,null,null,null,null,null,null,null,null,null,"Tyyppi",null,null,null,"normi","muokattu"]
["Vastausalkio sivu2",null,null,"Min",-10,"Max",10,"1.","x",null,null,null,{"$f":"AN22","v":"Kun erääseen lukuun lisätään 4, saadaan 7. Mikä on kyseinen luku?"},null,null,null,null,null,null,null,null,null,null,null,null,null,null,{"$f":"IF(OR(ISBLANK(I5),I5=0),0,1)","v":1},{"$f":"IF(OR(ISBLANK(J5),J5=0),0,1)","v":0},{"$f":"IF(OR(ISBLANK(K5),K5=0),0,1)","v":0},{"$f":"IF(OR(ISBLANK(L5),L5=0),0,1)","v":0},1,{"$f":"RANK($AF5,AB$5:AB$17,1)","v":1},{"$f":"RANK($AF5,AC$5:AC$17,1)","v":6},{"$f":"RANK($AF5,AD$5:AD$17,1)","v":8},{"$f":"RANK($AF5,AE$5:AE$17,1)","v":11}]
["Vastausalkio sivu3",null,null,"Min",-10,"Max",10,"2.","x",null,null,null,{"$f":"AO22","v":"Kun eräästä luvusta vähennetään 4, saadaan -1. Mikä on kyseinen luku?"},null,null,null,null,null,null,null,null,null,null,null,null,null,null,{"$f":"IF(OR(ISBLANK(I6),I6=0),AB5,AB5+1)","v":2},{"$f":"IF(OR(ISBLANK(J6),J6=0),AC5,AC5+1)","v":0},{"$f":"IF(OR(ISBLANK(K6),K6=0),AD5,AD5+1)","v":0},{"$f":"IF(OR(ISBLANK(L6),L6=0),AE5,AE5+1)","v":0},2,2,7,9,12]
["Vastausalkio sivu4",null,null,"Min",-10,"Max",10,"3.","x",null,null,null,{"$f":"AP22","v":"Kun eräs luku kerrotaan numerolla 9 saadaan 27. Mikä on kyseinen luku?"},null,null,null,null,null,null,null,null,null,null,null,null,null,null,3,0,0,0,3,3,{"$error":"#N/A"},10,13]
["Vakiot sivu1",null,null,"Min",1,"Max",20,"4.","x",null,null,null,{"$f":"AQ22","v":"Kun eräs luku jaetaan luvulla 9 saadaan 3. Mikä on kyseinen luku?"},null,null,null,null,null,null,null,null,null,null,null,null,null,null,4,0,0,0,4,4,{"$error":"#N/A"},{"$error":"#N/A"},{"$error":"#N/A"}]
["Vakiot sivu2",null,null,"Min",1,"Max",20,"5.","x",null,null,null,{"$f":"AR22","v":"Kun eräs luku kerrotaan luvulla 9 ja siihen lisätään 4, saadaan 31. Mikä on kyseinen luku?"},null,null,null,null,null,null,null,null,null,null,null,null,null,null,5,0,0,0,5,5,{"$error":"#N/A"},{"$error":"#N/A"},{"$error":"#N/A"}]
["Vakiot sivu3",null,null,"Min",1,"Max",20,"6.",null,"x",null,null,{"$f":"AS22","v":"Tiina on 4 vuotta vanhempi kuin Jori. Yhteensä heidän ikänsä on 42. Kuinka vanhoja he ovat?"},null,null,null,null,null,null,null,null,null,null,null,null,null,null,5,1,0,0,6,{"$error":"#N/A"},{"$error":"#N/A"},{"$error":"#N/A"},{"$error":"#N/A"}]
["Vakiot sivu4",null,null,"Min",1,"Max",20,"7.",null,"x",null,null,{"$f":"AT22","v":"Tiina on 4 vuotta nuorempi kuin Jori. Yhteensä heidän ikänsä on 42. Kuinka vanhoja he ovat?"},null,null,null,null,null,null,null,null,null,null,null,null,null,null,5,2,0,0,7,{"$error":"#N/A"},{"$error":"#N/A"},{"$error":"#N/A"},{"$error":"#N/A"}]
["Kertoimet sivu1",null,null,"Min",-10,"Max",10,"8.",null,null,"x",null,{"$f":"AU22","v":"Minna juoksee 4 kertaa saman matkan kuin Jori. Yhteensä he juoksivat 45 km. Kuinka pitkän lenkin Minna ja Jori juoksivat?"},null,null,null,null,null,null,null,null,null,null,null,null,null,null,5,2,1,0,8,{"$error":"#N/A"},{"$error":"#N/A"},{"$error":"#N/A"},{"$error":"#N/A"}]
["Kertoimet sivu2",null,null,"Min",-10,"Max",10,"9.",null,null,"x",null,{"$f":"AV22","v":"Minna ja Tiina maalasivat taloa. Minna maalasi 4 tuntia ja Tiina maalasi 6 tuntia. Kuinka pitää jakaa 30 euron palkka?"},null,null,null,null,null,null,null,null,null,null,null,null,null,null,5,2,2,0,9,{"$error":"#N/A"},{"$error":"#N/A"},{"$error":"#N/A"},{"$error":"#N/A"}]
["Kertoimet sivu3",null,null,"Min",-10,"Max",10,"10.",null,null,"x",null,{"$f":"AW22","v":"Minna juoksee lenkkipolun 4 kertaa ja Jori juoksee 6 kertaa. Yhteensä he juoksivat 90 km. Kuinka pitkän lenkin Minna ja Jori juoksivat?"},null,null,null,null,null,null,null,null,null,null,null,null,null,null,5,2,3,0,10,{"$error":"#N/A"},{"$error":"#N/A"},{"$error":"#N/A"},{"$error":"#N/A"}]
["Kertoimet sivu4",null,null,"Min",-10,"Max",10,"11.",null,null,null,"x",{"$f":"AX22","v":"Minna, Tiina ja Jori leipovat keksejä. Minna leipoo 4 kertaa enemmän keksejä kuin Tiina. Tiina taas leipoo 4 keksiä vähemmän kuin Jori. Yhteensä keksejä leivottiin 22. Montako kukin leipoi?"},null,null,null,null,null,null,null,null,null,null,null,null,null,null,5,2,3,1,11,{"$error":"#N/A"},{"$error":"#N/A"},{"$error":"#N/A"},{"$error":"#N/A"},null,null,null,null,null,null,null,null,null,null,null,null,null,null,null,null,null,null,null,null,null,null,null,null,null,null,null,null,null,null,null,null,null,null,1,2,3,4,5,6]
["Pikkukertoimet",null,null,"Min",2,"Max",8,"12.",null,null,null,"x",{"$f":"AY22","v":"Minna osti 9 koristekiveä ja 12 euroa maksavan vaasin. Tiina osti 13 koristekiveä ja maksoi ostoksistaan yhtä paljon kuin Minna. Kuinka paljon maksoi yksi koristekivi?"},null,null,null,null,null,null,null,null,null,null,null,null,null,null,5,2,3,2,12,{"$error":"#N/A"},{"$error":"#N/A"},{"$error":"#N/A"},{"$error":"#N/A"},null,null,null,null,null,null,null,null,null,null,null,null,null,null,null,null,null,null,null,null,null,null,null,null,null,null,null,null,null,null,null,null,null,"Ekat","Maija","Teppo","Liisa","Kari","Mika","Minna"]
["Tulosta vastaukset loppuun (0 = ei, 1 = kyllä)",null,null,null,null,null,1,"13.",null,null,null,"x",{"$f":"AZ22","v":"Elokuviin myytiin lastenlippuja (9 euroa/kpl) ja aikuistenlippuja (9 euroa/kpl) yhteensä 23 kpl. Kuinka monta lasten- ja aikuistenlippua myytiin, kun kassaan kertyi 207 euroa?"},null,null,null,null,null,null,null,null,null,null,null,null,null,null,5,2,3,3,13,{"$error":"#N/A"},{"$error":"#N/A"},{"$error":"#N/A"},{"$error":"#N/A"},null,null,null,null,null,null,null,null,null,null,null,null,null,null,null,null,null,null,null,null,null,null,null,null,null,null,null,null,null,null,null,null,null,"Tokat","Aki","Mari","Siru","Juha","Arto","Tiina"]
[null,null,null,null,null,null,null,"14.",null,null,null,null,{"$f":"BA22","v":"-9x/9 + 4 = 1"},null,null,null,null,null,null,null,null,null,null,null,null,null,null,{"$f":"IF(OR(ISBLANK(I18),I18=0),AB17,AB17+1)","v":5},{"$f":"IF(OR(ISBLANK(J18),J18=0),AC17,AC17+1)","v":2},{"$f":"IF(OR(ISBLANK(K18),K18=0),AD17,AD17+1)","v":3},{"$f":"IF(OR(ISBLANK(L18),L18=0),AE17,AE17+1)","v":3},14,{"$f":"RANK($AF18,AB$5:AB$17,1)","v":{"$error":"#N/A"}},{"$f":"RANK($AF18,AC$5:AC$17,1)","v":{"$error":"#N/A"}},{"$f":"RANK($AF18,AD$5:AD$17,1)","v":{"$error":"#N/A"}},{"$f":"RANK($AF18,AE$5:AE$17,1)","v":{"$error":"#N/A"}},null,null,null,null,null,null,null,null,null,null,null,null,null,null,null,null,null,null,null,null,null,null,null,null,null,null,null,null,null,null,null,null,null,"Kolmannet","Iina","Oona","Jori","Esa","Juuso","Asta"]
[null,null,null,null,null,null,null,null,null,null,null,null,null,null,null,"Alla olevia lukuja muuttamalla voit vielä muokata tehtäviä."]
["Tulostuva alue alkaa",null,null,null,null,null,null,null,null,null,null,null,null,null,null,"Tehtävä-tyypin numero","Vastaus-arpa\n(joskus vastaus)","Kertoimia, nollaton",null,"Yhteenlaskettavia numeroita",null,"Pikkukerroin",null,null,null,null,null,"Kertoimia, nollaton",null,"Yhteenlaskettavia numeroita",null,"Pikkukerroin",null,"Nollaton pikkukerroin",null,null,null,null,null,"Arvottuja laskuvaihtoehtoja",null,null,null,null,null,null,null,null,null,null,null,null,null,null,"Vastaus",null,null,"Kertoimia nollilla"]
["Laske. Merkitse välivaiheet!",null,null,null,null,null,null,null,null,null,null,null,"Sivu1",null,null,null,null,1,2,1,2,1,2,null,"Vastaus","Tehtävä","Vastausarpa",1,2,1,2,1,2,1,"1b","2a","2b",null,"Arpa",1,2,3,4,5,6,7,8,9,10,11,12,13,14,null,null,null,null,1,2,"1vara","2vara",null,null,3,4,null,null,"2 arpa",3,null,"Nimiä",null,null,1,2,3]
["1.",{"$f":"INDEX(AN22:BA22,,P22)","v":"Kun eräästä luvusta vähennetään 4, saadaan -1. Mikä on kyseinen luku?"},null,null,null,null,null,null,null,null,null,null,null,null,null,2,3,9,-9,4,19,4,6,{"$f":"B22","v":"Kun eräästä luvusta vähennetään 4, saadaan -1. Mikä on kyseinen luku?"},{"$f":"BC22","v":3},{"$f":"INDEX($AF$5:$AF$18,INDEX($AG$5:$AG$18,AM22,))","v":1},{"$f":"RANDBETWEEN($E$4,$G$4)","v":-10},{"$f":"IF(BF22=0,BH22,BF22)","v":-2},{"$f":"IF(OR(BG22=0,BG22=-R22),BI22,BG22)","v":-5},{"$f":"RANDBETWEEN($E$8,$G$8)","v":16},3,{"$f":"IF($AH22=0,IF($AI22=0,RANDBETWEEN($E$16,$G$16),$AI22),$AH22)","v":7},{"$f":"IF($AJ22=0,IF($AK22=0,RANDBETWEEN($E$16,$G$16),$AK22),$AJ22)","v":7},{"$f":"RANDBETWEEN($E$16,$G$16)","v":7},{"$f":"RANDBETWEEN($E$16,$G$16)","v":7},{"$f":"RANDBETWEEN($E$16,$G$16)","v":7},{"$f":"RANDBETWEEN($E$16,$G$16)","v":6},null,{"$f":"RANDBETWEEN(1,$AB$17)","v":1},{"$f":"CONCATENATE(\"Kun erääseen lukuun lisätään \",T22,\", saadaan \",Q22+T22,\". Mikä on kyseinen luku?\")","v":"Kun erääseen lukuun lisätään 4, saadaan 7. Mikä on kyseinen luku?"},{"$f":"CONCATENATE(\"Kun eräästä luvusta vähennetään \",T22,\", saadaan \",Q22-T22,\". Mikä on kyseinen luku?\")","v":"Kun eräästä luvusta vähennetään 4, saadaan -1. Mikä on kyseinen luku?"},{"$f":"CONCATENATE(\"Kun eräs luku kerrotaan numerolla \",R22,\" saadaan \", Q22*R22,\". Mikä on kyseinen luku?\")","v":"Kun eräs luku kerrotaan numerolla 9 saadaan 27. Mikä on kyseinen luku?"},{"$f":"CONCATENATE(\"Kun eräs luku jaetaan luvulla \",R22,\" saadaan \",Q22, \". Mikä on kyseinen luku?\")","v":"Kun eräs luku jaetaan luvulla 9 saadaan 3. Mikä on kyseinen luku?"},{"$f":"CONCATENATE(\"Kun eräs luku kerrotaan luvulla \", R22, \" ja siihen lisätään \",T22,\", saadaan \",Q22*R22+T22,\". Mikä on kyseinen luku?\")","v":"Kun eräs luku kerrotaan luvulla 9 ja siihen lisätään 4, saadaan 31. Mikä on kyseinen luku?"},{"$f":"CONCATENATE(BT22,\" on \", ABS(T22), \" vuotta vanhempi kuin \", BU22,\". Yhteensä heidän ikänsä on \", ABS(U22)*2+ABS(T22),\". Kuinka vanhoja he ovat?\")","v":"Tiina on 4 vuotta vanhempi kuin Jori. Yhteensä heidän ikänsä on 42. Kuinka vanhoja he ovat?"},{"$f":"CONCATENATE(BT22,\" on \", ABS(T22), \" vuotta nuorempi kuin \", BU22,\". Yhteensä heidän ikänsä on \", ABS(U22)*2+ABS(T22),\". Kuinka vanhoja he ovat?\")","v":"Tiina on 4 vuotta nuorempi kuin Jori. Yhteensä heidän ikänsä on 42. Kuinka vanhoja he ovat?"},{"$f":"CONCATENATE(BS22, \" juoksee \",V22,\" kertaa saman matkan kuin \",BU22, \". Yhteensä he juoksivat \", (V22+1)*ABS(R22),\" km. Kuinka pitkän lenkin \", BS22, \" ja \", BU22, \" juoksivat?\")","v":"Minna juoksee 4 kertaa saman matkan kuin Jori. Yhteensä he juoksivat 45 km. Kuinka pitkän lenkin Minna ja Jori juoksivat?"},{"$f":"CONCATENATE(BS22,\" ja \",BT22,\" maalasivat taloa. \",BS22,\" maalasi \", V22,\" tuntia ja \",BT22,\" maalasi \", W22,\" tuntia. Kuinka pitää jakaa \", (V22+W22)*ABS(Q22), \" euron palkka?\")","v":"Minna ja Tiina maalasivat taloa. Minna maalasi 4 tuntia ja Tiina maalasi 6 tuntia. Kuinka pitää jakaa 30 euron palkka?"},{"$f":"CONCATENATE(BS22, \" juoksee lenkkipolun \",V22,\" kertaa ja \",BU22, \" juoksee \",W22,\" kertaa. Yhteensä he juoksivat \", (V22+W22)*ABS(R22),\" km. Kuinka pitkän lenkin \", BS22, \" ja \", BU22, \" juoksivat?\")","v":"Minna juoksee lenkkipolun 4 kertaa ja Jori juoksee 6 kertaa. Yhteensä he juoksivat 90 km. Kuinka pitkän lenkin Minna ja Jori juoksivat?"},{"$f":"CONCATENATE(BS22,\", \",BT22,\" ja \", BU22, \" leipovat keksejä. \", BS22, \" leipoo \", V22,\" kertaa enemmän keksejä kuin \", BT22,\". \",BT22, \" taas leipoo \", ABS(T22), \" keksiä vähemmän kuin \", BU22, \". Yhteensä keksejä leivottiin \", (V22+2)*ABS(Q22)+ABS(T22),\". Montako kukin leipoi?\")","v":"Minna, Tiina ja Jori leipovat keksejä. Minna leipoo 4 kertaa enemmän keksejä kuin Tiina. Tiina taas leipoo 4 keksiä vähemmän kuin Jori. Yhteensä keksejä leivottiin 22. Montako kukin leipoi?"},{"$f":"CONCATENATE(BS22,\" osti \", ABS(R22),\" koristekiveä ja \", ABS(Q22*V22),\" euroa maksavan vaasin. \",BT22,\" osti \", ABS(R22)+ABS(V22), \" koristekiveä ja maksoi ostoksistaan yhtä paljon kuin \", BS22,\". Kuinka paljon maksoi yksi koristekivi?\")","v":"Minna osti 9 koristekiveä ja 12 euroa maksavan vaasin. Tiina osti 13 koristekiveä ja maksoi ostoksistaan yhtä paljon kuin Minna. Kuinka paljon maksoi yksi koristekivi?"},{"$f":"CONCATENATE(\"Elokuviin myytiin lastenlippuja (\",ABS(R22),\" euroa/kpl) ja aikuistenlippuja (\",ABS(S22),\" euroa/kpl) yhteensä \",ABS(T22)+ABS(U22),\" kpl. Kuinka monta lasten- ja aikuistenlippua myytiin, kun kassaan kertyi \",ABS(R22*T22)+ABS(S22*U22),\" euroa?\")","v":"Elokuviin myytiin lastenlippuja (9 euroa/kpl) ja aikuistenlippuja (9 euroa/kpl) yhteensä 23 kpl. Kuinka monta lasten- ja aikuistenlippua myytiin, kun kassaan kertyi 207 euroa?"},{"$f":"CONCATENATE(S22,\"x/\",IF(R22<0,CONCATENATE(\"(−\",ABS(R22),\")\"),R22),IF(T22<0,CONCATENATE(\" − \",ABS(T22)),CONCATENATE(\" + \",T22)),\" = \",BC22*S22/R22+T22)","v":"-9x/9 + 4 = 1"},null,{"$f":"INDEX(AN45:BA45,1,P22)","v":3},null,null,{"$f":"RANDBETWEEN($E$12,$G$12)","v":-2},-5,10,7,null,null,{"$f":"RANDBETWEEN($E$8,$G$8)","v":8},2,null,null,{"$f":"RANDBETWEEN($E$16,$G$16)","v":5},4,null,{"$f":"INDEX($BS$16:$BX$16,1,BV22)","v":"Minna"},{"$f":"INDEX($BS$17:$BX$17,1,BW22)","v":"Tiina"},{"$f":"INDEX($BS$18:$BX$18,1,BX22)","v":"Jori"},{"$f":"RANDBETWEEN(1,6)","v":6},{"$f":"RANDBETWEEN(1,6)","v":6},3]
["2.","Kun eräs luku kerrotaan luvulla 3 ja siihen lisätään 19, saadaan -8. Mikä on kyseinen luku?",null,null,null,null,null,null,null,null,null,null,null,null,null,5,-9,3,-5,19,1,2,5,{"$f":"B23","v":"Kun eräs luku kerrotaan luvulla 3 ja siihen lisätään 19, saadaan -8. Mikä on kyseinen luku?"},{"$f":"BC23","v":-9},{"$f":"INDEX($AF$5:$AF$18,INDEX($AG$5:$AG$18,AM23,))","v":3},-4,{"$f":"IF(BF23=0,BH23,BF23)","v":-9},2,12,3,{"$f":"IF($AH23=0,IF($AI23=0,RANDBETWEEN($E$16,$G$16),$AI23),$AH23)","v":3},{"$f":"IF($AJ23=0,IF($AK23=0,RANDBETWEEN($E$16,$G$16),$AK23),$AJ23)","v":8},{"$f":"RANDBETWEEN($E$16,$G$16)","v":3},4,8,2,null,{"$f":"RANDBETWEEN(1,$AB$17)","v":3},"Kun erääseen lukuun lisätään 19, saadaan 10. Mikä on kyseinen luku?","Kun eräästä luvusta vähennetään 19, saadaan -28. Mikä on kyseinen luku?","Kun eräs luku kerrotaan numerolla 3 saadaan -27. Mikä on kyseinen luku?","Kun eräs luku jaetaan luvulla 3 saadaan -9. Mikä on kyseinen luku?","Kun eräs luku kerrotaan luvulla 3 ja siihen lisätään 19, saadaan -8. Mikä on kyseinen luku?","Mari on 19 vuotta vanhempi kuin Esa. Yhteensä heidän ikänsä on 21. Kuinka vanhoja he ovat?",{"$f":"CONCATENATE(BT23,\" on \", ABS(T23), \" vuotta nuorempi kuin \", BU23,\". Yhteensä heidän ikänsä on \", ABS(U23)*2+ABS(T23),\". Kuinka vanhoja he ovat?\")","v":"Mari on 19 vuotta nuorempi kuin Esa. Yhteensä heidän ikänsä on 21. Kuinka vanhoja he ovat?"},{"$f":"CONCATENATE(BS23, \" juoksee \",V23,\" kertaa saman matkan kuin \",BU23, \". Yhteensä he juoksivat \", (V23+1)*ABS(R23),\" km. Kuinka pitkän lenkin \", BS23, \" ja \", BU23, \" juoksivat?\")","v":"Minna juoksee 2 kertaa saman matkan kuin Esa. Yhteensä he juoksivat 9 km. Kuinka pitkän lenkin Minna ja Esa juoksivat?"},"Minna ja Mari maalasivat taloa. Minna maalasi 2 tuntia ja Mari maalasi 5 tuntia. Kuinka pitää jakaa 63 euron palkka?","Minna juoksee lenkkipolun 2 kertaa ja Esa juoksee 5 kertaa. Yhteensä he juoksivat 21 km. Kuinka pitkän lenkin Minna ja Esa juoksivat?","Minna, Mari ja Esa leipovat keksejä. Minna leipoo 2 kertaa enemmän keksejä kuin Mari. Mari taas leipoo 19 keksiä vähemmän kuin Esa. Yhteensä keksejä leivottiin 55. Montako kukin leipoi?",{"$f":"CONCATENATE(BS23,\" osti \", ABS(R23),\" koristekiveä ja \", ABS(Q23*V23),\" euroa maksavan vaasin. \",BT23,\" osti \", ABS(R23)+ABS(V23), \" koristekiveä ja maksoi ostoksistaan yhtä paljon kuin \", BS23,\". Kuinka paljon maksoi yksi koristekivi?\")","v":"Minna osti 3 koristekiveä ja 18 euroa maksavan vaasin. Mari osti 5 koristekiveä ja maksoi ostoksistaan yhtä paljon kuin Minna. Kuinka paljon maksoi yksi koristekivi?"},{"$f":"CONCATENATE(\"Elokuviin myytiin lastenlippuja (\",ABS(R23),\" euroa/kpl) ja aikuistenlippuja (\",ABS(S23),\" euroa/kpl) yhteensä \",ABS(T23)+ABS(U23),\" kpl. Kuinka monta lasten- ja aikuistenlippua myytiin, kun kassaan kertyi \",ABS(R23*T23)+ABS(S23*U23),\" euroa?\")","v":"Elokuviin myytiin lastenlippuja (3 euroa/kpl) ja aikuistenlippuja (5 euroa/kpl) yhteensä 20 kpl. Kuinka monta lasten- ja aikuistenlippua myytiin, kun kassaan kertyi 62 euroa?"},"-5x/3 + 19 = 34",null,-9,null,null,-9,2,-2,10,null,null,14,20,null,null,8,5,null,"Minna","Mari","Esa",{"$f":"RANDBETWEEN(1,6)","v":6},2,4]
["3.","Kun eräs luku kerrotaan numerolla -5 saadaan 25. Mikä on kyseinen luku?",null,null,null,null,null,null,null,null,null,null,null,null,null,3,-5,-5,-3,10,10,3,4,"Kun eräs luku kerrotaan numerolla -5 saadaan 25. Mikä on kyseinen luku?",-5,{"$f":"INDEX($AF$5:$AF$18,INDEX($AG$5:$AG$18,AM24,))","v":3},1,8,10,9,5,7,5,7,5,5,8,null,{"$f":"RANDBETWEEN(1,$AB$17)","v":3},"Kun erääseen lukuun lisätään 10, saadaan 5. Mikä on kyseinen luku?","Kun eräästä luvusta vähennetään 10, saadaan -15. Mikä on kyseinen luku?","Kun eräs luku kerrotaan numerolla -5 saadaan 25. Mikä on kyseinen luku?","Kun eräs luku jaetaan luvulla -5 saadaan -5. Mikä on kyseinen luku?","Kun eräs luku kerrotaan luvulla -5 ja siihen lisätään 10, saadaan 35. Mikä on kyseinen luku?","Siru on 10 vuotta vanhempi kuin Juuso. Yhteensä heidän ikänsä on 30. Kuinka vanhoja he ovat?","Siru on 10 vuotta nuorempi kuin Juuso. Yhteensä heidän ikänsä on 30. Kuinka vanhoja he ovat?","Liisa juoksee 3 kertaa saman matkan kuin Juuso. Yhteensä he juoksivat 20 km. Kuinka pitkän lenkin Liisa ja Juuso juoksivat?","Liisa ja Siru maalasivat taloa. Liisa maalasi 3 tuntia ja Siru maalasi 4 tuntia. Kuinka pitää jakaa 35 euron palkka?","Liisa juoksee lenkkipolun 3 kertaa ja Juuso juoksee 4 kertaa. Yhteensä he juoksivat 35 km. Kuinka pitkän lenkin Liisa ja Juuso juoksivat?","Liisa, Siru ja Juuso leipovat keksejä. Liisa leipoo 3 kertaa enemmän keksejä kuin Siru. Siru taas leipoo 10 keksiä vähemmän kuin Juuso. Yhteensä keksejä leivottiin 35. Montako kukin leipoi?","Liisa osti 5 koristekiveä ja 15 euroa maksavan vaasin. Siru osti 8 koristekiveä ja maksoi ostoksistaan yhtä paljon kuin Liisa. Kuinka paljon maksoi yksi koristekivi?","Elokuviin myytiin lastenlippuja (5 euroa/kpl) ja aikuistenlippuja (3 euroa/kpl) yhteensä 20 kpl. Kuinka monta lasten- ja aikuistenlippua myytiin, kun kassaan kertyi 80 euroa?","-3x/(−5) + 10 = 7",null,-5,null,null,8,10,-4,-10,null,null,9,15,null,null,6,6,null,"Liisa","Siru","Juuso",3,3,5]
["4.","Kun eräs luku jaetaan luvulla 2 saadaan -1. Mikä on kyseinen luku?",null,null,null,null,null,null,null,null,null,null,null,null,null,4,-1,2,4,17,3,4,7,"Kun eräs luku jaetaan luvulla 2 saadaan -1. Mikä on kyseinen luku?",-2,{"$f":"INDEX($AF$5:$AF$18,INDEX($AG$5:$AG$18,AM25,))","v":3},-8,9,1,18,3,6,6,6,5,6,3,null,{"$f":"RANDBETWEEN(1,$AB$17)","v":3},"Kun erääseen lukuun lisätään 17, saadaan 16. Mikä on kyseinen luku?","Kun eräästä luvusta vähennetään 17, saadaan -18. Mikä on kyseinen luku?","Kun eräs luku kerrotaan numerolla 2 saadaan -2. Mikä on kyseinen luku?","Kun eräs luku jaetaan luvulla 2 saadaan -1. Mikä on kyseinen luku?","Kun eräs luku kerrotaan luvulla 2 ja siihen lisätään 17, saadaan 15. Mikä on kyseinen luku?","Mari on 17 vuotta vanhempi kuin Juuso. Yhteensä heidän ikänsä on 23. Kuinka vanhoja he ovat?","Mari on 17 vuotta nuorempi kuin Juuso. Yhteensä heidän ikänsä on 23. Kuinka vanhoja he ovat?","Minna juoksee 4 kertaa saman matkan kuin Juuso. Yhteensä he juoksivat 10 km. Kuinka pitkän lenkin Minna ja Juuso juoksivat?","Minna ja Mari maalasivat taloa. Minna maalasi 4 tuntia ja Mari maalasi 7 tuntia. Kuinka pitää jakaa 11 euron palkka?","Minna juoksee lenkkipolun 4 kertaa ja Juuso juoksee 7 kertaa. Yhteensä he juoksivat 22 km. Kuinka pitkän lenkin Minna ja Juuso juoksivat?","Minna, Mari ja Juuso leipovat keksejä. Minna leipoo 4 kertaa enemmän keksejä kuin Mari. Mari taas leipoo 17 keksiä vähemmän kuin Juuso. Yhteensä keksejä leivottiin 23. Montako kukin leipoi?","Minna osti 2 koristekiveä ja 4 euroa maksavan vaasin. Mari osti 6 koristekiveä ja maksoi ostoksistaan yhtä paljon kuin Minna. Kuinka paljon maksoi yksi koristekivi?","Elokuviin myytiin lastenlippuja (2 euroa/kpl) ja aikuistenlippuja (4 euroa/kpl) yhteensä 20 kpl. Kuinka monta lasten- ja aikuistenlippua myytiin, kun kassaan kertyi 46 euroa?","4x/2 + 17 = 13",null,-2,null,null,9,1,-6,2,null,null,13,15,null,null,3,5,null,"Minna","Mari","Juuso",6,2,5]
["5.","Kun eräs luku kerrotaan numerolla 5 saadaan 20. Mikä on kyseinen luku?",null,null,null,null,null,null,null,null,null,null,null,null,null,3,4,5,-5,11,20,4,7,"Kun eräs luku kerrotaan numerolla 5 saadaan 20. Mikä on kyseinen luku?",4,{"$f":"INDEX($AF$5:$AF$18,INDEX($AG$5:$AG$18,AM26,))","v":4},0,7,5,15,1,8,4,8,2,4,7,null,{"$f":"RANDBETWEEN(1,$AB$17)","v":4},"Kun erääseen lukuun lisätään 11, saadaan 15. Mikä on kyseinen luku?","Kun eräästä luvusta vähennetään 11, saadaan -7. Mikä on kyseinen luku?","Kun eräs luku kerrotaan numerolla 5 saadaan 20. Mikä on kyseinen luku?","Kun eräs luku jaetaan luvulla 5 saadaan 4. Mikä on kyseinen luku?","Kun eräs luku kerrotaan luvulla 5 ja siihen lisätään 11, saadaan 31. Mikä on kyseinen luku?","Arto on 11 vuotta vanhempi kuin Esa. Yhteensä heidän ikänsä on 51. Kuinka vanhoja he ovat?","Arto on 11 vuotta nuorempi kuin Esa. Yhteensä heidän ikänsä on 51. Kuinka vanhoja he ovat?","Teppo juoksee 4 kertaa saman matkan kuin Esa. Yhteensä he juoksivat 25 km. Kuinka pitkän lenkin Teppo ja Esa juoksivat?","Teppo ja Arto maalasivat taloa. Teppo maalasi 4 tuntia ja Arto maalasi 7 tuntia. Kuinka pitää jakaa 44 euron palkka?","Teppo juoksee lenkkipolun 4 kertaa ja Esa juoksee 7 kertaa. Yhteensä he juoksivat 55 km. Kuinka pitkän lenkin Teppo ja Esa juoksivat?","Teppo, Arto ja Esa leipovat keksejä. Teppo leipoo 4 kertaa enemmän keksejä kuin Arto. Arto taas leipoo 11 keksiä vähemmän kuin Esa. Yhteensä keksejä leivottiin 35. Montako kukin leipoi?","Teppo osti 5 koristekiveä ja 16 euroa maksavan vaasin. Arto osti 9 koristekiveä ja maksoi ostoksistaan yhtä paljon kuin Teppo. Kuinka paljon maksoi yksi koristekivi?","Elokuviin myytiin lastenlippuja (5 euroa/kpl) ja aikuistenlippuja (5 euroa/kpl) yhteensä 31 kpl. Kuinka monta lasten- ja aikuistenlippua myytiin, kun kassaan kertyi 155 euroa?","-5x/5 + 11 = 7",null,4,null,null,7,5,10,9,null,null,5,13,null,null,5,7,null,"Teppo","Arto","Esa",2,5,4]
["6.","Aki on 17 vuotta vanhempi kuin Jori. Yhteensä heidän ikänsä on 29. Kuinka vanhoja he ovat?",null,null,null,null,null,null,null,null,null,null,"Sivu2",null,null,6,-8,-2,8,17,6,7,2,"Aki on 17 vuotta vanhempi kuin Jori. Yhteensä heidän ikänsä on 29. Kuinka vanhoja he ovat?","Aki 23 v, Jori 6 v",{"$f":"INDEX($AF$5:$AF$18,INDEX($AH$5:$AH$18,AM27,))","v":6},{"$f":"RANDBETWEEN($E$5,$G$5)","v":-7},3,-9,4,7,3,4,3,5,4,2,null,{"$f":"RANDBETWEEN(1,$AC$17)","v":1},"Kun erääseen lukuun lisätään 17, saadaan 9. Mikä on kyseinen luku?","Kun eräästä luvusta vähennetään 17, saadaan -25. Mikä on kyseinen luku?","Kun eräs luku kerrotaan numerolla -2 saadaan 16. Mikä on kyseinen luku?","Kun eräs luku jaetaan luvulla -2 saadaan -8. Mikä on kyseinen luku?","Kun eräs luku kerrotaan luvulla -2 ja siihen lisätään 17, saadaan 33. Mikä on kyseinen luku?","Aki on 17 vuotta vanhempi kuin Jori. Yhteensä heidän ikänsä on 29. Kuinka vanhoja he ovat?","Aki on 17 vuotta nuorempi kuin Jori. Yhteensä heidän ikänsä on 29. Kuinka vanhoja he ovat?","Mika juoksee 7 kertaa saman matkan kuin Jori. Yhteensä he juoksivat 16 km. Kuinka pitkän lenkin Mika ja Jori juoksivat?","Mika ja Aki maalasivat taloa. Mika maalasi 7 tuntia ja Aki maalasi 2 tuntia. Kuinka pitää jakaa 72 euron palkka?","Mika juoksee lenkkipolun 7 kertaa ja Jori juoksee 2 kertaa. Yhteensä he juoksivat 18 km. Kuinka pitkän lenkin Mika ja Jori juoksivat?","Mika, Aki ja Jori leipovat keksejä. Mika leipoo 7 kertaa enemmän keksejä kuin Aki. Aki taas leipoo 17 keksiä vähemmän kuin Jori. Yhteensä keksejä leivottiin 89. Montako kukin leipoi?","Mika osti 2 koristekiveä ja 56 euroa maksavan vaasin. Aki osti 9 koristekiveä ja maksoi ostoksistaan yhtä paljon kuin Mika. Kuinka paljon maksoi yksi koristekivi?","Elokuviin myytiin lastenlippuja (2 euroa/kpl) ja aikuistenlippuja (8 euroa/kpl) yhteensä 23 kpl. Kuinka monta lasten- ja aikuistenlippua myytiin, kun kassaan kertyi 82 euroa?",{"$error":"#VALUE!"},null,"Aki 23 v, Jori 6 v",null,null,3,-9,-5,10,null,null,7,7,null,null,3,3,null,"Mika","Aki","Jori",5,1,3]
["7.","Tiina on 10 vuotta nuorempi kuin Iina. Yhteensä heidän ikänsä on 28. Kuinka vanhoja he ovat?",null,null,null,null,null,null,null,null,null,null,null,null,null,7,9,1,-5,10,9,5,6,"Tiina on 10 vuotta nuorempi kuin Iina. Yhteensä heidän ikänsä on 28. Kuinka vanhoja he ovat?","Tiina 9 v, Iina 19 v",{"$f":"INDEX($AF$5:$AF$18,INDEX($AH$5:$AH$18,AM28,))","v":6},{"$f":"RANDBETWEEN($E$5,$G$5)","v":9},7,4,10,13,6,6,6,2,6,2,null,{"$f":"RANDBETWEEN(1,$AC$17)","v":1},"Kun erääseen lukuun lisätään 10, saadaan 19. Mikä on kyseinen luku?","Kun eräästä luvusta vähennetään 10, saadaan -1. Mikä on kyseinen luku?","Kun eräs luku kerrotaan numerolla 1 saadaan 9. Mikä on kyseinen luku?","Kun eräs luku jaetaan luvulla 1 saadaan 9. Mikä on kyseinen luku?","Kun eräs luku kerrotaan luvulla 1 ja siihen lisätään 10, saadaan 19. Mikä on kyseinen luku?","Tiina on 10 vuotta vanhempi kuin Iina. Yhteensä heidän ikänsä on 28. Kuinka vanhoja he ovat?","Tiina on 10 vuotta nuorempi kuin Iina. Yhteensä heidän ikänsä on 28. Kuinka vanhoja he ovat?","Minna juoksee 5 kertaa saman matkan kuin Iina. Yhteensä he juoksivat 6 km. Kuinka pitkän lenkin Minna ja Iina juoksivat?","Minna ja Tiina maalasivat taloa. Minna maalasi 5 tuntia ja Tiina maalasi 6 tuntia. Kuinka pitää jakaa 99 euron palkka?","Minna juoksee lenkkipolun 5 kertaa ja Iina juoksee 6 kertaa. Yhteensä he juoksivat 11 km. Kuinka pitkän lenkin Minna ja Iina juoksivat?","Minna, Tiina ja Iina leipovat keksejä. Minna leipoo 5 kertaa enemmän keksejä kuin Tiina. Tiina taas leipoo 10 keksiä vähemmän kuin Iina. Yhteensä keksejä leivottiin 73. Montako kukin leipoi?","Minna osti 1 koristekiveä ja 45 euroa maksavan vaasin. Tiina osti 6 koristekiveä ja maksoi ostoksistaan yhtä paljon kuin Minna. Kuinka paljon maksoi yksi koristekivi?","Elokuviin myytiin lastenlippuja (1 euroa/kpl) ja aikuistenlippuja (5 euroa/kpl) yhteensä 19 kpl. Kuinka monta lasten- ja aikuistenlippua myytiin, kun kassaan kertyi 55 euroa?",{"$error":"#VALUE!"},null,"Tiina 9 v, Iina 19 v",null,null,7,4,6,9,null,null,16,3,null,null,6,3,null,"Minna","Tiina","Iina",6,6,1]
["8.","Arto on 16 vuotta vanhempi kuin Esa. Yhteensä heidän ikänsä on 44. Kuinka vanhoja he ovat?",null,null,null,null,null,null,null,null,null,null,null,null,null,6,-5,8,-8,16,14,6,3,"Arto on 16 vuotta vanhempi kuin Esa. Yhteensä heidän ikänsä on 44. Kuinka vanhoja he ovat?","Arto 30 v, Esa 14 v",{"$f":"INDEX($AF$5:$AF$18,INDEX($AH$5:$AH$18,AM29,))","v":6},2,7,5,9,3,4,7,4,4,7,7,null,{"$f":"RANDBETWEEN(1,$AC$17)","v":1},"Kun erääseen lukuun lisätään 16, saadaan 11. Mikä on kyseinen luku?","Kun eräästä luvusta vähennetään 16, saadaan -21. Mikä on kyseinen luku?","Kun eräs luku kerrotaan numerolla 8 saadaan -40. Mikä on kyseinen luku?","Kun eräs luku jaetaan luvulla 8 saadaan -5. Mikä on kyseinen luku?","Kun eräs luku kerrotaan luvulla 8 ja siihen lisätään 16, saadaan -24. Mikä on kyseinen luku?","Arto on 16 vuotta vanhempi kuin Esa. Yhteensä heidän ikänsä on 44. Kuinka vanhoja he ovat?","Arto on 16 vuotta nuorempi kuin Esa. Yhteensä heidän ikänsä on 44. Kuinka vanhoja he ovat?","Mika juoksee 6 kertaa saman matkan kuin Esa. Yhteensä he juoksivat 56 km. Kuinka pitkän lenkin Mika ja Esa juoksivat?","Mika ja Arto maalasivat taloa. Mika maalasi 6 tuntia ja Arto maalasi 3 tuntia. Kuinka pitää jakaa 45 euron palkka?","Mika juoksee lenkkipolun 6 kertaa ja Esa juoksee 3 kertaa. Yhteensä he juoksivat 72 km. Kuinka pitkän lenkin Mika ja Esa juoksivat?","Mika, Arto ja Esa leipovat keksejä. Mika leipoo 6 kertaa enemmän keksejä kuin Arto. Arto taas leipoo 16 keksiä vähemmän kuin Esa. Yhteensä keksejä leivottiin 56. Montako kukin leipoi?","Mika osti 8 koristekiveä ja 30 euroa maksavan vaasin. Arto osti 14 koristekiveä ja maksoi ostoksistaan yhtä paljon kuin Mika. Kuinka paljon maksoi yksi koristekivi?","Elokuviin myytiin lastenlippuja (8 euroa/kpl) ja aikuistenlippuja (8 euroa/kpl) yhteensä 30 kpl. Kuinka monta lasten- ja aikuistenlippua myytiin, kun kassaan kertyi 240 euroa?",{"$error":"#VALUE!"},null,"Arto 30 v, Esa 14 v",null,null,7,5,1,0,null,null,5,18,null,null,7,3,null,"Mika","Arto","Esa",5,5,4]
["9.","Mari on 2 vuotta vanhempi kuin Juuso. Yhteensä heidän ikänsä on 32. Kuinka vanhoja he ovat?",null,null,null,null,null,null,null,null,null,null,null,null,null,6,1,3,-2,2,15,5,2,"Mari on 2 vuotta vanhempi kuin Juuso. Yhteensä heidän ikänsä on 32. Kuinka vanhoja he ovat?","Mari 17 v, Juuso 15 v",{"$f":"INDEX($AF$5:$AF$18,INDEX($AH$5:$AH$18,AM30,))","v":7},-7,-4,10,17,10,8,4,8,3,4,4,null,{"$f":"RANDBETWEEN(1,$AC$17)","v":2},"Kun erääseen lukuun lisätään 2, saadaan 3. Mikä on kyseinen luku?","Kun eräästä luvusta vähennetään 2, saadaan -1. Mikä on kyseinen luku?","Kun eräs luku kerrotaan numerolla 3 saadaan 3. Mikä on kyseinen luku?","Kun eräs luku jaetaan luvulla 3 saadaan 1. Mikä on kyseinen luku?","Kun eräs luku kerrotaan luvulla 3 ja siihen lisätään 2, saadaan 5. Mikä on kyseinen luku?","Mari on 2 vuotta vanhempi kuin Juuso. Yhteensä heidän ikänsä on 32. Kuinka vanhoja he ovat?","Mari on 2 vuotta nuorempi kuin Juuso. Yhteensä heidän ikänsä on 32. Kuinka vanhoja he ovat?","Teppo juoksee 5 kertaa saman matkan kuin Juuso. Yhteensä he juoksivat 18 km. Kuinka pitkän lenkin Teppo ja Juuso juoksivat?","Teppo ja Mari maalasivat taloa. Teppo maalasi 5 tuntia ja Mari maalasi 2 tuntia. Kuinka pitää jakaa 7 euron palkka?","Teppo juoksee lenkkipolun 5 kertaa ja Juuso juoksee 2 kertaa. Yhteensä he juoksivat 21 km. Kuinka pitkän lenkin Teppo ja Juuso juoksivat?","Teppo, Mari ja Juuso leipovat keksejä. Teppo leipoo 5 kertaa enemmän keksejä kuin Mari. Mari taas leipoo 2 keksiä vähemmän kuin Juuso. Yhteensä keksejä leivottiin 9. Montako kukin leipoi?","Teppo osti 3 koristekiveä ja 5 euroa maksavan vaasin. Mari osti 8 koristekiveä ja maksoi ostoksistaan yhtä paljon kuin Teppo. Kuinka paljon maksoi yksi koristekivi?","Elokuviin myytiin lastenlippuja (3 euroa/kpl) ja aikuistenlippuja (2 euroa/kpl) yhteensä 17 kpl. Kuinka monta lasten- ja aikuistenlippua myytiin, kun kassaan kertyi 36 euroa?",{"$error":"#VALUE!"},null,"Mari 17 v, Juuso 15 v",null,null,-4,10,-2,-2,null,null,4,15,null,null,8,4,null,"Teppo","Mari","Juuso",2,2,5]
["10.","Siru on 16 vuotta vanhempi kuin Juuso. Yhteensä heidän ikänsä on 52. Kuinka vanhoja he ovat?",null,null,null,null,null,null,null,null,null,null,null,null,null,6,-7,1,-2,16,18,2,7,"Siru on 16 vuotta vanhempi kuin Juuso. Yhteensä heidän ikänsä on 52. Kuinka vanhoja he ovat?","Siru 34 v, Juuso 18 v",{"$f":"INDEX($AF$5:$AF$18,INDEX($AH$5:$AH$18,AM31,))","v":6},-7,6,-2,3,18,3,8,3,6,8,3,null,{"$f":"RANDBETWEEN(1,$AC$17)","v":1},"Kun erääseen lukuun lisätään 16, saadaan 9. Mikä on kyseinen luku?","Kun eräästä luvusta vähennetään 16, saadaan -23. Mikä on kyseinen luku?","Kun eräs luku kerrotaan numerolla 1 saadaan -7. Mikä on kyseinen luku?","Kun eräs luku jaetaan luvulla 1 saadaan -7. Mikä on kyseinen luku?","Kun eräs luku kerrotaan luvulla 1 ja siihen lisätään 16, saadaan 9. Mikä on kyseinen luku?","Siru on 16 vuotta vanhempi kuin Juuso. Yhteensä heidän ikänsä on 52. Kuinka vanhoja he ovat?","Siru on 16 vuotta nuorempi kuin Juuso. Yhteensä heidän ikänsä on 52. Kuinka vanhoja he ovat?","Liisa juoksee 2 kertaa saman matkan kuin Juuso. Yhteensä he juoksivat 3 km. Kuinka pitkän lenkin Liisa ja Juuso juoksivat?","Liisa ja Siru maalasivat taloa. Liisa maalasi 2 tuntia ja Siru maalasi 7 tuntia. Kuinka pitää jakaa 63 euron palkka?","Liisa juoksee lenkkipolun 2 kertaa ja Juuso juoksee 7 kertaa. Yhteensä he juoksivat 9 km. Kuinka pitkän lenkin Liisa ja Juuso juoksivat?","Liisa, Siru ja Juuso leipovat keksejä. Liisa leipoo 2 kertaa enemmän keksejä kuin Siru. Siru taas leipoo 16 keksiä vähemmän kuin Juuso. Yhteensä keksejä leivottiin 44. Montako kukin leipoi?","Liisa osti 1 koristekiveä ja 14 euroa maksavan vaasin. Siru osti 3 koristekiveä ja maksoi ostoksistaan yhtä paljon kuin Liisa. Kuinka paljon maksoi yksi koristekivi?","Elokuviin myytiin lastenlippuja (1 euroa/kpl) ja aikuistenlippuja (2 euroa/kpl) yhteensä 34 kpl. Kuinka monta lasten- ja aikuistenlippua myytiin, kun kassaan kertyi 52 euroa?",{"$error":"#VALUE!"},null,"Siru 34 v, Juuso 18 v",null,null,6,-2,-4,-7,null,null,19,3,null,null,6,4,null,"Liisa","Siru","Juuso",3,3,5]
["11.","Kari juoksee lenkkipolun 6 kertaa ja Juuso juoksee 4 kertaa. Yhteensä he juoksivat 90 km. Kuinka pitkän lenkin Kari ja Juuso juoksivat?",null,null,null,null,null,null,null,null,null,null,"sivu3",null,null,10,3,-9,2,9,1,6,4,"Kari juoksee lenkkipolun 6 kertaa ja Juuso juoksee 4 kertaa. Yhteensä he juoksivat 90 km. Kuinka pitkän lenkin Kari ja Juuso juoksivat?","Kari 54 km, Juuso 36 km",{"$f":"INDEX($AF$5:$AF$18,INDEX($AI$5:$AI$18,AM32,))","v":8},{"$f":"RANDBETWEEN($E$6,$G$6)","v":-6},-7,-6,17,12,5,6,5,2,6,8,null,{"$f":"RANDBETWEEN(1,$AD$17)","v":1},"Kun erääseen lukuun lisätään 9, saadaan 12. Mikä on kyseinen luku?","Kun eräästä luvusta vähennetään 9, saadaan -6. Mikä on kyseinen luku?","Kun eräs luku kerrotaan numerolla -9 saadaan -27. Mikä on kyseinen luku?","Kun eräs luku jaetaan luvulla -9 saadaan 3. Mikä on kyseinen luku?","Kun eräs luku kerrotaan luvulla -9 ja siihen lisätään 9, saadaan -18. Mikä on kyseinen luku?","Tiina on 9 vuotta vanhempi kuin Juuso. Yhteensä heidän ikänsä on 11. Kuinka vanhoja he ovat?","Tiina on 9 vuotta nuorempi kuin Juuso. Yhteensä heidän ikänsä on 11. Kuinka vanhoja he ovat?","Kari juoksee 6 kertaa saman matkan kuin Juuso. Yhteensä he juoksivat 63 km. Kuinka pitkän lenkin Kari ja Juuso juoksivat?","Kari ja Tiina maalasivat taloa. Kari maalasi 6 tuntia ja Tiina maalasi 4 tuntia. Kuinka pitää jakaa 30 euron palkka?","Kari juoksee lenkkipolun 6 kertaa ja Juuso juoksee 4 kertaa. Yhteensä he juoksivat 90 km. Kuinka pitkän lenkin Kari ja Juuso juoksivat?","Kari, Tiina ja Juuso leipovat keksejä. Kari leipoo 6 kertaa enemmän keksejä kuin Tiina. Tiina taas leipoo 9 keksiä vähemmän kuin Juuso. Yhteensä keksejä leivottiin 33. Montako kukin leipoi?","Kari osti 9 koristekiveä ja 18 euroa maksavan vaasin. Tiina osti 15 koristekiveä ja maksoi ostoksistaan yhtä paljon kuin Kari. Kuinka paljon maksoi yksi koristekivi?","Elokuviin myytiin lastenlippuja (9 euroa/kpl) ja aikuistenlippuja (2 euroa/kpl) yhteensä 10 kpl. Kuinka monta lasten- ja aikuistenlippua myytiin, kun kassaan kertyi 83 euroa?",{"$error":"#VALUE!"},null,"Kari 54 km, Juuso 36 km",null,null,-7,-6,-7,7,null,null,7,14,null,null,8,8,null,"Kari","Tiina","Juuso",4,6,5]
["12.","Teppo juoksee lenkkipolun 4 kertaa ja Juuso juoksee 8 kertaa. Yhteensä he juoksivat 72 km. Kuinka pitkän lenkin Teppo ja Juuso juoksivat?",null,null,null,null,null,null,null,null,null,null,null,null,null,10,3,6,4,13,11,4,8,"Teppo juoksee lenkkipolun 4 kertaa ja Juuso juoksee 8 kertaa. Yhteensä he juoksivat 72 km. Kuinka pitkän lenkin Teppo ja Juuso juoksivat?","Teppo 24 km, Juuso 48 km",{"$f":"INDEX($AF$5:$AF$18,INDEX($AI$5:$AI$18,AM33,))","v":8},{"$f":"RANDBETWEEN($E$6,$G$6)","v":-1},7,-10,19,2,4,8,4,6,8,6,null,{"$f":"RANDBETWEEN(1,$AD$17)","v":1},"Kun erääseen lukuun lisätään 13, saadaan 16. Mikä on kyseinen luku?","Kun eräästä luvusta vähennetään 13, saadaan -10. Mikä on kyseinen luku?","Kun eräs luku kerrotaan numerolla 6 saadaan 18. Mikä on kyseinen luku?","Kun eräs luku jaetaan luvulla 6 saadaan 3. Mikä on kyseinen luku?","Kun eräs luku kerrotaan luvulla 6 ja siihen lisätään 13, saadaan 31. Mikä on kyseinen luku?","Arto on 13 vuotta vanhempi kuin Juuso. Yhteensä heidän ikänsä on 35. Kuinka vanhoja he ovat?","Arto on 13 vuotta nuorempi kuin Juuso. Yhteensä heidän ikänsä on 35. Kuinka vanhoja he ovat?","Teppo juoksee 4 kertaa saman matkan kuin Juuso. Yhteensä he juoksivat 30 km. Kuinka pitkän lenkin Teppo ja Juuso juoksivat?","Teppo ja Arto maalasivat taloa. Teppo maalasi 4 tuntia ja Arto maalasi 8 tuntia. Kuinka pitää jakaa 36 euron palkka?","Teppo juoksee lenkkipolun 4 kertaa ja Juuso juoksee 8 kertaa. Yhteensä he juoksivat 72 km. Kuinka pitkän lenkin Teppo ja Juuso juoksivat?","Teppo, Arto ja Juuso leipovat keksejä. Teppo leipoo 4 kertaa enemmän keksejä kuin Arto. Arto taas leipoo 13 keksiä vähemmän kuin Juuso. Yhteensä keksejä leivottiin 31. Montako kukin leipoi?","Teppo osti 6 koristekiveä ja 12 euroa maksavan vaasin. Arto osti 10 koristekiveä ja maksoi ostoksistaan yhtä paljon kuin Teppo. Kuinka paljon maksoi yksi koristekivi?","Elokuviin myytiin lastenlippuja (6 euroa/kpl) ja aikuistenlippuja (4 euroa/kpl) yhteensä 24 kpl. Kuinka monta lasten- ja aikuistenlippua myytiin, kun kassaan kertyi 122 euroa?",{"$error":"#VALUE!"},null,"Teppo 24 km, Juuso 48 km",null,null,7,-10,-6,-1,null,null,6,18,null,null,4,8,null,"Teppo","Arto","Juuso",2,5,5]
["13.","Mika juoksee 7 kertaa saman matkan kuin Esa. Yhteensä he juoksivat 24 km. Kuinka pitkän lenkin Mika ja Esa juoksivat?",null,null,null,null,null,null,null,null,null,null,null,null,null,8,9,3,9,12,9,7,3,"Mika juoksee 7 kertaa saman matkan kuin Esa. Yhteensä he juoksivat 24 km. Kuinka pitkän lenkin Mika ja Esa juoksivat?","Mika 21 km, Esa 3 km",{"$f":"INDEX($AF$5:$AF$18,INDEX($AI$5:$AI$18,AM34,))","v":9},-2,-3,-1,17,14,4,6,4,7,6,3,null,{"$f":"RANDBETWEEN(1,$AD$17)","v":2},"Kun erääseen lukuun lisätään 12, saadaan 21. Mikä on kyseinen luku?","Kun eräästä luvusta vähennetään 12, saadaan -3. Mikä on kyseinen luku?","Kun eräs luku kerrotaan numerolla 3 saadaan 27. Mikä on kyseinen luku?","Kun eräs luku jaetaan luvulla 3 saadaan 9. Mikä on kyseinen luku?","Kun eräs luku kerrotaan luvulla 3 ja siihen lisätään 12, saadaan 39. Mikä on kyseinen luku?","Aki on 12 vuotta vanhempi kuin Esa. Yhteensä heidän ikänsä on 30. Kuinka vanhoja he ovat?","Aki on 12 vuotta nuorempi kuin Esa. Yhteensä heidän ikänsä on 30. Kuinka vanhoja he ovat?","Mika juoksee 7 kertaa saman matkan kuin Esa. Yhteensä he juoksivat 24 km. Kuinka pitkän lenkin Mika ja Esa juoksivat?","Mika ja Aki maalasivat taloa. Mika maalasi 7 tuntia ja Aki maalasi 3 tuntia. Kuinka pitää jakaa 90 euron palkka?","Mika juoksee lenkkipolun 7 kertaa ja Esa juoksee 3 kertaa. Yhteensä he juoksivat 30 km. Kuinka pitkän lenkin Mika ja Esa juoksivat?","Mika, Aki ja Esa leipovat keksejä. Mika leipoo 7 kertaa enemmän keksejä kuin Aki. Aki taas leipoo 12 keksiä vähemmän kuin Esa. Yhteensä keksejä leivottiin 93. Montako kukin leipoi?","Mika osti 3 koristekiveä ja 63 euroa maksavan vaasin. Aki osti 10 koristekiveä ja maksoi ostoksistaan yhtä paljon kuin Mika. Kuinka paljon maksoi yksi koristekivi?","Elokuviin myytiin lastenlippuja (3 euroa/kpl) ja aikuistenlippuja (9 euroa/kpl) yhteensä 21 kpl. Kuinka monta lasten- ja aikuistenlippua myytiin, kun kassaan kertyi 117 euroa?",{"$error":"#VALUE!"},null,"Mika 21 km, Esa 3 km",null,null,-3,-1,7,10,null,null,18,18,null,null,5,6,null,"Mika","Aki","Esa",5,1,4]
["14.","Maija juoksee lenkkipolun 5 kertaa ja Oona juoksee 2 kertaa. Yhteensä he juoksivat 14 km. Kuinka pitkän lenkin Maija ja Oona juoksivat?",null,null,null,null,null,null,null,null,null,null,null,null,null,10,-5,-2,-10,14,11,5,2,"Maija juoksee lenkkipolun 5 kertaa ja Oona juoksee 2 kertaa. Yhteensä he juoksivat 14 km. Kuinka pitkän lenkin Maija ja Oona juoksivat?","Maija 10 km, Oona 4 km",{"$f":"INDEX($AF$5:$AF$18,INDEX($AI$5:$AI$18,AM35,))","v":8},{"$f":"RANDBETWEEN($E$6,$G$6)","v":-5},-5,7,11,2,6,4,6,5,4,7,null,{"$f":"RANDBETWEEN(1,$AD$17)","v":1},"Kun erääseen lukuun lisätään 14, saadaan 9. Mikä on kyseinen luku?","Kun eräästä luvusta vähennetään 14, saadaan -19. Mikä on kyseinen luku?","Kun eräs luku kerrotaan numerolla -2 saadaan 10. Mikä on kyseinen luku?","Kun eräs luku jaetaan luvulla -2 saadaan -5. Mikä on kyseinen luku?","Kun eräs luku kerrotaan luvulla -2 ja siihen lisätään 14, saadaan 24. Mikä on kyseinen luku?","Mari on 14 vuotta vanhempi kuin Oona. Yhteensä heidän ikänsä on 36. Kuinka vanhoja he ovat?","Mari on 14 vuotta nuorempi kuin Oona. Yhteensä heidän ikänsä on 36. Kuinka vanhoja he ovat?","Maija juoksee 5 kertaa saman matkan kuin Oona. Yhteensä he juoksivat 12 km. Kuinka pitkän lenkin Maija ja Oona juoksivat?","Maija ja Mari maalasivat taloa. Maija maalasi 5 tuntia ja Mari maalasi 2 tuntia. Kuinka pitää jakaa 35 euron palkka?","Maija juoksee lenkkipolun 5 kertaa ja Oona juoksee 2 kertaa. Yhteensä he juoksivat 14 km. Kuinka pitkän lenkin Maija ja Oona juoksivat?","Maija, Mari ja Oona leipovat keksejä. Maija leipoo 5 kertaa enemmän keksejä kuin Mari. Mari taas leipoo 14 keksiä vähemmän kuin Oona. Yhteensä keksejä leivottiin 49. Montako kukin leipoi?","Maija osti 2 koristekiveä ja 25 euroa maksavan vaasin. Mari osti 7 koristekiveä ja maksoi ostoksistaan yhtä paljon kuin Maija. Kuinka paljon maksoi yksi koristekivi?","Elokuviin myytiin lastenlippuja (2 euroa/kpl) ja aikuistenlippuja (10 euroa/kpl) yhteensä 25 kpl. Kuinka monta lasten- ja aikuistenlippua myytiin, kun kassaan kertyi 138 euroa?",{"$error":"#VALUE!"},null,"Maija 10 km, Oona 4 km",null,null,-5,0,4,7,null,null,13,19,null,null,2,3,null,"Maija","Mari","Oona",1,2,2]
["15.","Kari juoksee lenkkipolun 2 kertaa ja Juuso juoksee 8 kertaa. Yhteensä he juoksivat 60 km. Kuinka pitkän lenkin Kari ja Juuso juoksivat?",null,null,null,null,null,null,null,null,null,null,null,null,null,10,-5,6,-5,20,20,2,8,"Kari juoksee lenkkipolun 2 kertaa ja Juuso juoksee 8 kertaa. Yhteensä he juoksivat 60 km. Kuinka pitkän lenkin Kari ja Juuso juoksivat?","Kari 12 km, Juuso 48 km",{"$f":"INDEX($AF$5:$AF$18,INDEX($AI$5:$AI$18,AM36,))","v":10},-5,-10,-2,3,15,4,7,4,6,7,7,null,{"$f":"RANDBETWEEN(1,$AD$17)","v":3},"Kun erääseen lukuun lisätään 20, saadaan 15. Mikä on kyseinen luku?","Kun eräästä luvusta vähennetään 20, saadaan -25. Mikä on kyseinen luku?","Kun eräs luku kerrotaan numerolla 6 saadaan -30. Mikä on kyseinen luku?","Kun eräs luku jaetaan luvulla 6 saadaan -5. Mikä on kyseinen luku?","Kun eräs luku kerrotaan luvulla 6 ja siihen lisätään 20, saadaan -10. Mikä on kyseinen luku?","Tiina on 20 vuotta vanhempi kuin Juuso. Yhteensä heidän ikänsä on 60. Kuinka vanhoja he ovat?","Tiina on 20 vuotta nuorempi kuin Juuso. Yhteensä heidän ikänsä on 60. Kuinka vanhoja he ovat?","Kari juoksee 2 kertaa saman matkan kuin Juuso. Yhteensä he juoksivat 18 km. Kuinka pitkän lenkin Kari ja Juuso juoksivat?","Kari ja Tiina maalasivat taloa. Kari maalasi 2 tuntia ja Tiina maalasi 8 tuntia. Kuinka pitää jakaa 50 euron palkka?","Kari juoksee lenkkipolun 2 kertaa ja Juuso juoksee 8 kertaa. Yhteensä he juoksivat 60 km. Kuinka pitkän lenkin Kari ja Juuso juoksivat?","Kari, Tiina ja Juuso leipovat keksejä. Kari leipoo 2 kertaa enemmän keksejä kuin Tiina. Tiina taas leipoo 20 keksiä vähemmän kuin Juuso. Yhteensä keksejä leivottiin 40. Montako kukin leipoi?","Kari osti 6 koristekiveä ja 10 euroa maksavan vaasin. Tiina osti 8 koristekiveä ja maksoi ostoksistaan yhtä paljon kuin Kari. Kuinka paljon maksoi yksi koristekivi?","Elokuviin myytiin lastenlippuja (6 euroa/kpl) ja aikuistenlippuja (5 euroa/kpl) yhteensä 40 kpl. Kuinka monta lasten- ja aikuistenlippua myytiin, kun kassaan kertyi 220 euroa?",{"$error":"#VALUE!"},null,"Kari 12 km, Juuso 48 km",null,null,-10,-2,-7,-7,null,null,2,5,null,null,8,7,null,"Kari","Tiina","Juuso",4,6,5]
["16.","Kari osti 8 koristekiveä ja 8 euroa maksavan vaasin. Tiina osti 16 koristekiveä ja maksoi ostoksistaan yhtä paljon kuin Kari. Kuinka paljon maksoi yksi koristekivi?",null,null,null,null,null,null,null,null,null,null,"sivu4",null,null,12,-1,-8,-7,3,7,8,7,"Kari osti 8 koristekiveä ja 8 euroa maksavan vaasin. Tiina osti 16 koristekiveä ja maksoi ostoksistaan yhtä paljon kuin Kari. Kuinka paljon maksoi yksi koristekivi?",1,{"$f":"INDEX($AF$5:$AF$18,INDEX($AJ$5:$AJ$18,AM37,))","v":11},{"$f":"RANDBETWEEN($E$7,$G$7)","v":-3},-6,10,13,16,3,3,3,8,3,2,null,{"$f":"RANDBETWEEN(1,$AE$17)","v":1},"Kun erääseen lukuun lisätään 3, saadaan 2. Mikä on kyseinen luku?","Kun eräästä luvusta vähennetään 3, saadaan -4. Mikä on kyseinen luku?","Kun eräs luku kerrotaan numerolla -8 saadaan 8. Mikä on kyseinen luku?","Kun eräs luku jaetaan luvulla -8 saadaan -1. Mikä on kyseinen luku?","Kun eräs luku kerrotaan luvulla -8 ja siihen lisätään 3, saadaan 11. Mikä on kyseinen luku?","Tiina on 3 vuotta vanhempi kuin Jori. Yhteensä heidän ikänsä on 17. Kuinka vanhoja he ovat?","Tiina on 3 vuotta nuorempi kuin Jori. Yhteensä heidän ikänsä on 17. Kuinka vanhoja he ovat?","Kari juoksee 8 kertaa saman matkan kuin Jori. Yhteensä he juoksivat 72 km. Kuinka pitkän lenkin Kari ja Jori juoksivat?","Kari ja Tiina maalasivat taloa. Kari maalasi 8 tuntia ja Tiina maalasi 7 tuntia. Kuinka pitää jakaa 15 euron palkka?","Kari juoksee lenkkipolun 8 kertaa ja Jori juoksee 7 kertaa. Yhteensä he juoksivat 120 km. Kuinka pitkän lenkin Kari ja Jori juoksivat?","Kari, Tiina ja Jori leipovat keksejä. Kari leipoo 8 kertaa enemmän keksejä kuin Tiina. Tiina taas leipoo 3 keksiä vähemmän kuin Jori. Yhteensä keksejä leivottiin 13. Montako kukin leipoi?","Kari osti 8 koristekiveä ja 8 euroa maksavan vaasin. Tiina osti 16 koristekiveä ja maksoi ostoksistaan yhtä paljon kuin Kari. Kuinka paljon maksoi yksi koristekivi?","Elokuviin myytiin lastenlippuja (8 euroa/kpl) ja aikuistenlippuja (7 euroa/kpl) yhteensä 10 kpl. Kuinka monta lasten- ja aikuistenlippua myytiin, kun kassaan kertyi 73 euroa?","-7x/(−8) + 3 = 3,875",null,1,null,null,-6,10,8,-3,null,null,12,19,null,null,2,8,null,"Kari","Tiina","Jori",4,6,3]
["17.","Maija osti 4 koristekiveä ja 60 euroa maksavan vaasin. Tiina osti 10 koristekiveä ja maksoi ostoksistaan yhtä paljon kuin Maija. Kuinka paljon maksoi yksi koristekivi?",null,null,null,null,null,null,null,null,null,null,null,null,null,12,-10,4,-3,19,11,6,7,"Maija osti 4 koristekiveä ja 60 euroa maksavan vaasin. Tiina osti 10 koristekiveä ja maksoi ostoksistaan yhtä paljon kuin Maija. Kuinka paljon maksoi yksi koristekivi?",10,{"$f":"INDEX($AF$5:$AF$18,INDEX($AJ$5:$AJ$18,AM38,))","v":13},{"$f":"RANDBETWEEN($E$7,$G$7)","v":1},7,7,1,3,5,5,5,4,5,6,null,{"$f":"RANDBETWEEN(1,$AE$17)","v":3},"Kun erääseen lukuun lisätään 19, saadaan 9. Mikä on kyseinen luku?","Kun eräästä luvusta vähennetään 19, saadaan -29. Mikä on kyseinen luku?","Kun eräs luku kerrotaan numerolla 4 saadaan -40. Mikä on kyseinen luku?","Kun eräs luku jaetaan luvulla 4 saadaan -10. Mikä on kyseinen luku?","Kun eräs luku kerrotaan luvulla 4 ja siihen lisätään 19, saadaan -21. Mikä on kyseinen luku?","Tiina on 19 vuotta vanhempi kuin Juuso. Yhteensä heidän ikänsä on 41. Kuinka vanhoja he ovat?","Tiina on 19 vuotta nuorempi kuin Juuso. Yhteensä heidän ikänsä on 41. Kuinka vanhoja he ovat?","Maija juoksee 6 kertaa saman matkan kuin Juuso. Yhteensä he juoksivat 28 km. Kuinka pitkän lenkin Maija ja Juuso juoksivat?","Maija ja Tiina maalasivat taloa. Maija maalasi 6 tuntia ja Tiina maalasi 7 tuntia. Kuinka pitää jakaa 130 euron palkka?","Maija juoksee lenkkipolun 6 kertaa ja Juuso juoksee 7 kertaa. Yhteensä he juoksivat 52 km. Kuinka pitkän lenkin Maija ja Juuso juoksivat?","Maija, Tiina ja Juuso leipovat keksejä. Maija leipoo 6 kertaa enemmän keksejä kuin Tiina. Tiina taas leipoo 19 keksiä vähemmän kuin Juuso. Yhteensä keksejä leivottiin 99. Montako kukin leipoi?","Maija osti 4 koristekiveä ja 60 euroa maksavan vaasin. Tiina osti 10 koristekiveä ja maksoi ostoksistaan yhtä paljon kuin Maija. Kuinka paljon maksoi yksi koristekivi?","Elokuviin myytiin lastenlippuja (4 euroa/kpl) ja aikuistenlippuja (3 euroa/kpl) yhteensä 30 kpl. Kuinka monta lasten- ja aikuistenlippua myytiin, kun kassaan kertyi 109 euroa?","-3x/4 + 19 = 11,5",null,10,null,null,7,7,-2,-5,null,null,11,20,null,null,2,4,null,"Maija","Tiina","Juuso",1,6,5]
["18.","Elokuviin myytiin lastenlippuja (6 euroa/kpl) ja aikuistenlippuja (2 euroa/kpl) yhteensä 24 kpl. Kuinka monta lasten- ja aikuistenlippua myytiin, kun kassaan kertyi 92 euroa?",null,null,null,null,null,null,null,null,null,null,null,null,null,13,-2,-6,-2,11,13,6,6,"Elokuviin myytiin lastenlippuja (6 euroa/kpl) ja aikuistenlippuja (2 euroa/kpl) yhteensä 24 kpl. Kuinka monta lasten- ja aikuistenlippua myytiin, kun kassaan kertyi 92 euroa?","11 lasten, 13 aikuisten",{"$f":"INDEX($AF$5:$AF$18,INDEX($AJ$5:$AJ$18,AM39,))","v":12},-10,-3,4,3,1,7,3,7,7,3,6,null,{"$f":"RANDBETWEEN(1,$AE$17)","v":2},"Kun erääseen lukuun lisätään 11, saadaan 9. Mikä on kyseinen luku?","Kun eräästä luvusta vähennetään 11, saadaan -13. Mikä on kyseinen luku?","Kun eräs luku kerrotaan numerolla -6 saadaan 12. Mikä on kyseinen luku?","Kun eräs luku jaetaan luvulla -6 saadaan -2. Mikä on kyseinen luku?","Kun eräs luku kerrotaan luvulla -6 ja siihen lisätään 11, saadaan 23. Mikä on kyseinen luku?","Aki on 11 vuotta vanhempi kuin Asta. Yhteensä heidän ikänsä on 37. Kuinka vanhoja he ovat?","Aki on 11 vuotta nuorempi kuin Asta. Yhteensä heidän ikänsä on 37. Kuinka vanhoja he ovat?","Maija juoksee 6 kertaa saman matkan kuin Asta. Yhteensä he juoksivat 42 km. Kuinka pitkän lenkin Maija ja Asta juoksivat?","Maija ja Aki maalasivat taloa. Maija maalasi 6 tuntia ja Aki maalasi 6 tuntia. Kuinka pitää jakaa 24 euron palkka?","Maija juoksee lenkkipolun 6 kertaa ja Asta juoksee 6 kertaa. Yhteensä he juoksivat 72 km. Kuinka pitkän lenkin Maija ja Asta juoksivat?","Maija, Aki ja Asta leipovat keksejä. Maija leipoo 6 kertaa enemmän keksejä kuin Aki. Aki taas leipoo 11 keksiä vähemmän kuin Asta. Yhteensä keksejä leivottiin 27. Montako kukin leipoi?","Maija osti 6 koristekiveä ja 12 euroa maksavan vaasin. Aki osti 12 koristekiveä ja maksoi ostoksistaan yhtä paljon kuin Maija. Kuinka paljon maksoi yksi koristekivi?","Elokuviin myytiin lastenlippuja (6 euroa/kpl) ja aikuistenlippuja (2 euroa/kpl) yhteensä 24 kpl. Kuinka monta lasten- ja aikuistenlippua myytiin, kun kassaan kertyi 92 euroa?",{"$error":"#VALUE!"},null,"11 lasten, 13 aikuisten",null,null,-3,6,10,4,null,null,11,5,null,null,7,3,null,"Maija","Aki","Asta",1,1,6]
["19.","Elokuviin myytiin lastenlippuja (8 euroa/kpl) ja aikuistenlippuja (2 euroa/kpl) yhteensä 4 kpl. Kuinka monta lasten- ja aikuistenlippua myytiin, kun kassaan kertyi 26 euroa?",null,null,null,null,null,null,null,null,null,null,null,null,null,13,9,-8,2,3,1,2,2,"Elokuviin myytiin lastenlippuja (8 euroa/kpl) ja aikuistenlippuja (2 euroa/kpl) yhteensä 4 kpl. Kuinka monta lasten- ja aikuistenlippua myytiin, kun kassaan kertyi 26 euroa?","3 lasten, 1 aikuisten",{"$f":"INDEX($AF$5:$AF$18,INDEX($AJ$5:$AJ$18,AM40,))","v":13},-2,5,-2,8,8,3,2,3,8,2,7,null,{"$f":"RANDBETWEEN(1,$AE$17)","v":3},"Kun erääseen lukuun lisätään 3, saadaan 12. Mikä on kyseinen luku?","Kun eräästä luvusta vähennetään 3, saadaan 6. Mikä on kyseinen luku?","Kun eräs luku kerrotaan numerolla -8 saadaan -72. Mikä on kyseinen luku?","Kun eräs luku jaetaan luvulla -8 saadaan 9. Mikä on kyseinen luku?","Kun eräs luku kerrotaan luvulla -8 ja siihen lisätään 3, saadaan -69. Mikä on kyseinen luku?","Siru on 3 vuotta vanhempi kuin Oona. Yhteensä heidän ikänsä on 5. Kuinka vanhoja he ovat?","Siru on 3 vuotta nuorempi kuin Oona. Yhteensä heidän ikänsä on 5. Kuinka vanhoja he ovat?","Kari juoksee 2 kertaa saman matkan kuin Oona. Yhteensä he juoksivat 24 km. Kuinka pitkän lenkin Kari ja Oona juoksivat?","Kari ja Siru maalasivat taloa. Kari maalasi 2 tuntia ja Siru maalasi 2 tuntia. Kuinka pitää jakaa 36 euron palkka?","Kari juoksee lenkkipolun 2 kertaa ja Oona juoksee 2 kertaa. Yhteensä he juoksivat 32 km. Kuinka pitkän lenkin Kari ja Oona juoksivat?","Kari, Siru ja Oona leipovat keksejä. Kari leipoo 2 kertaa enemmän keksejä kuin Siru. Siru taas leipoo 3 keksiä vähemmän kuin Oona. Yhteensä keksejä leivottiin 39. Montako kukin leipoi?","Kari osti 8 koristekiveä ja 18 euroa maksavan vaasin. Siru osti 10 koristekiveä ja maksoi ostoksistaan yhtä paljon kuin Kari. Kuinka paljon maksoi yksi koristekivi?","Elokuviin myytiin lastenlippuja (8 euroa/kpl) ja aikuistenlippuja (2 euroa/kpl) yhteensä 4 kpl. Kuinka monta lasten- ja aikuistenlippua myytiin, kun kassaan kertyi 26 euroa?",{"$error":"#VALUE!"},null,"3 lasten, 1 aikuisten",null,null,5,-2,3,7,null,null,1,10,null,null,4,3,null,"Kari","Siru","Oona",4,3,2]
["20.","Mika osti 9 koristekiveä ja 32 euroa maksavan vaasin. Siru osti 17 koristekiveä ja maksoi ostoksistaan yhtä paljon kuin Mika. Kuinka paljon maksoi yksi koristekivi?",null,null,null,null,null,null,null,null,null,null,null,null,null,12,4,9,5,18,15,8,2,"Mika osti 9 koristekiveä ja 32 euroa maksavan vaasin. Siru osti 17 koristekiveä ja maksoi ostoksistaan yhtä paljon kuin Mika. Kuinka paljon maksoi yksi koristekivi?",4,{"$f":"INDEX($AF$5:$AF$18,INDEX($AJ$5:$AJ$18,AM41,))","v":13},2,-4,-8,16,6,2,7,2,6,7,3,null,{"$f":"RANDBETWEEN(1,$AE$17)","v":3},"Kun erääseen lukuun lisätään 18, saadaan 22. Mikä on kyseinen luku?","Kun eräästä luvusta vähennetään 18, saadaan -14. Mikä on kyseinen luku?","Kun eräs luku kerrotaan numerolla 9 saadaan 36. Mikä on kyseinen luku?","Kun eräs luku jaetaan luvulla 9 saadaan 4. Mikä on kyseinen luku?","Kun eräs luku kerrotaan luvulla 9 ja siihen lisätään 18, saadaan 54. Mikä on kyseinen luku?","Siru on 18 vuotta vanhempi kuin Iina. Yhteensä heidän ikänsä on 48. Kuinka vanhoja he ovat?","Siru on 18 vuotta nuorempi kuin Iina. Yhteensä heidän ikänsä on 48. Kuinka vanhoja he ovat?","Mika juoksee 8 kertaa saman matkan kuin Iina. Yhteensä he juoksivat 81 km. Kuinka pitkän lenkin Mika ja Iina juoksivat?","Mika ja Siru maalasivat taloa. Mika maalasi 8 tuntia ja Siru maalasi 2 tuntia. Kuinka pitää jakaa 40 euron palkka?","Mika juoksee lenkkipolun 8 kertaa ja Iina juoksee 2 kertaa. Yhteensä he juoksivat 90 km. Kuinka pitkän lenkin Mika ja Iina juoksivat?","Mika, Siru ja Iina leipovat keksejä. Mika leipoo 8 kertaa enemmän keksejä kuin Siru. Siru taas leipoo 18 keksiä vähemmän kuin Iina. Yhteensä keksejä leivottiin 58. Montako kukin leipoi?","Mika osti 9 koristekiveä ja 32 euroa maksavan vaasin. Siru osti 17 koristekiveä ja maksoi ostoksistaan yhtä paljon kuin Mika. Kuinka paljon maksoi yksi koristekivi?","Elokuviin myytiin lastenlippuja (9 euroa/kpl) ja aikuistenlippuja (5 euroa/kpl) yhteensä 33 kpl. Kuinka monta lasten- ja aikuistenlippua myytiin, kun kassaan kertyi 237 euroa?","5x/9 + 18 = 20,2222222222222",null,4,null,null,-4,-8,0,8,null,null,6,17,null,null,6,2,null,"Mika","Siru","Iina",5,3,1]
["Vastaukset:",null,null,null,null,null,null,null,null,null,null,null,null,null,null,"Tehtävä","Vastaus-arpa","Kertoimia, nollaton",null,"Yhteenlaskettavia numeroita",null,"Pikkukerroin",null,null,null,null,null,null,null,null,null,null,null,null,null,null,null,null,null,null,null,null,null,null,null,null,null,null,null,null,null,null,null,null,null,null,null,null,null,null,null,null,null,null,null,null,null,{"$f":"RANDBETWEEN($E$16,$G$16)","v":7},{"$f":"RANDBETWEEN($E$16,$G$16)","v":3}]
["1.",{"$f":"BC22","v":3},null,null,"8.",{"$f":"BC29","v":"Arto 30 v, Esa 14 v"},null,null,"15.",{"$f":"BC36","v":"Kari 12 km, Juuso 48 km"},null,null,null,null,null,null,null,1,2,1,2,1,2,null,null,null,null,null,null,null,null,null,null,null,null,null,null,null,null,null,null,null,null,null,null,null,null,null,null,null,null,null,null,null,null,null,null,null,null,null,null,null,null,null,null,null,null,6,8]
["2.",-9,null,null,"9.","Mari 17 v, Juuso 15 v",null,null,"16.",1,null,null,null,null,null,null,null,null,null,null,null,null,null,null,null,null,null,null,null,null,null,null,null,null,null,null,null,null,"Vastauksia",1,2,3,4,5,7,7,8,6,9,10,11,12,13,null,null,null,null,null,null,null,null,null,null,null,null,null,null,8,2]
["3.",-5,null,null,"10.","Siru 34 v, Juuso 18 v",null,null,"17.",10,null,null,null,null,null,null,null,null,null,null,null,null,null,null,null,null,null,null,null,null,null,null,null,null,null,null,null,null,null,{"$f":"$Q22","v":3},3,3,{"$f":"Q22*R22","v":27},{"$f":"$Q22","v":3},{"$f":"CONCATENATE(BT22, \" \",ABS(U22)+ABS(T22),\" v, \",BU22,\" \",ABS(U22),\" v\")","v":"Tiina 23 v, Jori 19 v"},{"$f":"CONCATENATE(BT22, \" \",ABS(U22),\" v, \",BU22,\" \",ABS(U22)+ABS(T22),\" v\")","v":"Tiina 19 v, Jori 23 v"},{"$f":"CONCATENATE(BS22,\" \", ABS(R22)*V22, \" km, \",BU22,\" \",ABS(R22), \" km\")","v":"Minna 36 km, Jori 9 km"},{"$f":"CONCATENATE(BS22,\" \",ABS(Q22)*V22,\" €, \",BT22,\" \",ABS(Q22)*W22,\" €\")","v":"Minna 12 €, Tiina 18 €"},{"$f":"CONCATENATE(BS22,\" \", ABS(R22)*V22, \" km, \",BU22,\" \",ABS(R22)*W22, \" km\")","v":"Minna 36 km, Jori 54 km"},{"$f":"CONCATENATE(BS22,\" \",ABS(Q22)*V22,\", \", BT22, \" \",ABS(Q22), \" ja \", BU22, \" \", ABS(Q22)+ABS(T22))","v":"Minna 12, Tiina 3 ja Jori 7"},{"$f":"ABS($Q22)","v":3},{"$f":"CONCATENATE(T22,\" lasten, \", U22,\" aikuisten\")","v":"4 lasten, 19 aikuisten"},{"$f":"$Q22","v":3},null,null,null,null,null,null,null,null,null,null,null,null,null,null,2,4]
["4.",-2,null,null,"11.","Kari 54 km, Juuso 36 km",null,null,"18.","11 lasten, 13 aikuisten",null,null,null,null,null,null,null,null,null,null,null,null,null,null,null,null,null,null,null,null,null,null,null,null,null,null,null,null,null,-9,-9,-9,-27,-9,"Mari 20 v, Esa 1 v",{"$f":"CONCATENATE(BT23, \" \",ABS(U23),\" v, \",BU23,\" \",ABS(U23)+ABS(T23),\" v\")","v":"Mari 1 v, Esa 20 v"},"Minna 6 km, Esa 3 km","Minna 18 €, Mari 45 €","Minna 6 km, Esa 15 km","Minna 18, Mari 9 ja Esa 28",{"$f":"ABS($Q23)","v":9},{"$f":"CONCATENATE(T23,\" lasten, \", U23,\" aikuisten\")","v":"19 lasten, 1 aikuisten"},-9,null,null,null,null,null,null,null,null,null,null,null,null,null,null,3,4]
["5.",4,null,null,"12.","Teppo 24 km, Juuso 48 km",null,null,"19.","3 lasten, 1 aikuisten",null,null,null,null,null,null,null,null,null,null,null,null,null,null,null,null,null,null,null,null,null,null,null,null,null,null,null,null,null,-5,-5,-5,25,-5,"Siru 20 v, Juuso 10 v","Siru 10 v, Juuso 20 v","Liisa 15 km, Juuso 5 km","Liisa 15 €, Siru 20 €","Liisa 15 km, Juuso 20 km","Liisa 15, Siru 5 ja Juuso 15",5,"10 lasten, 10 aikuisten",-5,null,null,null,null,null,null,null,null,null,null,null,null,null,null,8,7]
["6.","Aki 23 v, Jori 6 v",null,null,"13.","Mika 21 km, Esa 3 km",null,null,"20.",4,null,null,null,null,null,null,null,null,null,null,null,null,null,null,null,null,null,null,null,null,null,null,null,null,null,null,null,null,null,-1,-1,-1,-2,-1,"Mari 20 v, Juuso 3 v","Mari 3 v, Juuso 20 v","Minna 8 km, Juuso 2 km","Minna 4 €, Mari 7 €","Minna 8 km, Juuso 14 km","Minna 4, Mari 1 ja Juuso 18",1,"17 lasten, 3 aikuisten",-1,null,null,null,null,null,null,null,null,null,null,null,null,null,null,2,6]
["7.","Tiina 9 v, Iina 19 v",null,null,"14.","Maija 10 km, Oona 4 km",null,null,null,null,null,null,null,null,null,null,null,null,null,null,null,null,null,null,null,null,null,null,null,null,null,null,null,null,null,null,null,null,null,4,4,4,20,4,"Arto 31 v, Esa 20 v","Arto 20 v, Esa 31 v","Teppo 20 km, Esa 5 km","Teppo 16 €, Arto 28 €","Teppo 20 km, Esa 35 km","Teppo 16, Arto 4 ja Esa 15",4,"11 lasten, 20 aikuisten",4,null,null,null,null,null,null,null,null,null,null,null,null,null,null,5,2]
["Tulostuva alue loppuu",null,null,null,null,null,null,null,null,null,null,null,null,null,null,null,null,null,null,null,null,null,null,null,null,null,null,null,null,null,null,null,null,null,null,null,null,null,null,-8,-8,-8,16,-8,"Aki 23 v, Jori 6 v","Aki 6 v, Jori 23 v","Mika 14 km, Jori 2 km","Mika 56 €, Aki 16 €","Mika 14 km, Jori 4 km","Mika 56, Aki 8 ja Jori 25",8,"17 lasten, 6 aikuisten",-8,null,null,null,null,null,null,null,null,null,null,null,"Vastaukset",null,null,2,2]
["Tämän sovelman käyttöoikeudet:\nTekijänoikeudet alkuperäiseen sovellukseen/tiedostoon omistaa Janne Koponen.\nTämä sovellus on ladattavissa osoitteesta https://peda.net/p/joykop/mm\nKysymyksiä ja palautetta voi laittaa Janne Koposelle (janne.koponen@tampere.fi)",null,null,null,null,null,null,null,null,null,null,null,null,null,null,null,null,null,null,null,null,null,null,null,null,null,null,null,null,null,null,null,null,null,null,null,null,null,null,9,9,9,9,9,"Tiina 19 v, Iina 9 v","Tiina 9 v, Iina 19 v","Minna 5 km, Iina 1 km","Minna 45 €, Tiina 54 €","Minna 5 km, Iina 6 km","Minna 45, Tiina 9 ja Iina 19",9,"10 lasten, 9 aikuisten",9,null,null,null,null,null,null,null,null,null,null,null,null,null,null,6,5]
["Mitä saat luvallani tehdä:\n- Saat käyttää sovellusta omassa opetuksessasi ilman erillistä korvausta.\n- Saat antaa tämän sovelluksen vastikkeetta toiselle opettajalle, jonka tunnet. (Jos kollegasi tarjoaa sinulle tästä hyvästä kahvit, on se kuitenkin ok.) Tämä jako-oikeus ei tarkoita kuitenkaan massajakamisia, heitä varten on seuraava kohta.\n- Saat kertoa, mistä tämän latasit, jotta muutkin tätä tarvitsevat tämän löytävät.\n- Jos haluat parannella tätä, niin siitä vaan. Kuulisin kuitenkin mielelläni hyvistä ideoista.",null,null,null,null,null,null,null,null,null,null,null,null,null,null,null,null,null,null,null,null,null,null,null,null,null,null,null,null,null,null,null,null,null,null,null,null,null,null,-5,-5,-5,-40,-5,"Arto 30 v, Esa 14 v","Arto 14 v, Esa 30 v","Mika 48 km, Esa 8 km","Mika 30 €, Arto 15 €","Mika 48 km, Esa 24 km","Mika 30, Arto 5 ja Esa 21",5,"16 lasten, 14 aikuisten",-5,null,null,null,null,null,null,null,null,null,null,null,null,null,null,6,2]
["Mitä et saa tehdä:\n- Ilman erillistä lupaa et saa liittää tätä sovellusta osaksi maksullista tai ilmaista oppimateriaalipakettia.\n",null,null,null,null,null,null,null,null,null,null,null,null,null,null,null,null,null,null,null,null,null,null,null,null,null,null,null,null,null,null,null,null,null,null,null,null,null,null,1,1,1,3,1,"Mari 17 v, Juuso 15 v","Mari 15 v, Juuso 17 v","Teppo 15 km, Juuso 3 km","Teppo 5 €, Mari 2 €","Teppo 15 km, Juuso 6 km","Teppo 5, Mari 1 ja Juuso 3",1,"2 lasten, 15 aikuisten",1,null,null,null,null,null,null,null,null,null,null,null,null,null,null,7,5]
["Miksi tällaiset ehdot:\n- Tämän systeemin tekemiseen on käytetty jonkin verran aikaa ja suklaata.\n- Käytetty aika on omalla osallani säästynyt jo sillä, ettei minun ole enää tarvinnut yhtä paljon tehdä käsin monisteita tai muokata niitä tarpeen mukaan.\n- Suklaata en tarvitse lisää, mutta haluan pitää itselläni oikeuden vaatia rahallista korvausta, jos joku oppimateriaalivalmistaja haluaa lisätä tämän sovelluksen jakamaansa oppimateriaaliin.\n- Ajansäästön lisäksi uskon myös opetukseni parantuneen, kun olen voinut tarjota oppilailleni juuri heidän taitotasolleen sopivia tehtäviä. Ja toivon muidenkin saavan saman hyödyn.",null,null,null,null,null,null,null,null,null,null,null,null,null,null,null,null,null,null,null,null,null,null,null,null,null,null,null,null,null,null,null,null,null,null,null,null,null,null,-7,-7,-7,-7,-7,"Siru 34 v, Juuso 18 v","Siru 18 v, Juuso 34 v","Liisa 2 km, Juuso 1 km","Liisa 14 €, Siru 49 €","Liisa 2 km, Juuso 7 km","Liisa 14, Siru 7 ja Juuso 23",7,"16 lasten, 18 aikuisten",-7,null,null,null,null,null,null,null,null,null,null,null,null,null,null,7,4]
[null,null,null,null,null,null,null,null,null,null,null,null,null,null,null,null,null,null,null,null,null,null,null,null,null,null,null,null,null,null,null,null,null,null,null,null,null,null,null,3,3,3,-27,3,"Tiina 10 v, Juuso 1 v","Tiina 1 v, Juuso 10 v","Kari 54 km, Juuso 9 km","Kari 18 €, Tiina 12 €","Kari 54 km, Juuso 36 km","Kari 18, Tiina 3 ja Juuso 12",3,"9 lasten, 1 aikuisten",3,null,null,null,null,null,null,null,null,null,null,null,null,null,null,5,7]
[null,null,null,null,null,null,null,null,null,null,null,null,null,null,null,null,null,null,null,null,null,null,null,null,null,null,null,null,null,null,null,null,null,null,null,null,null,null,null,3,3,3,18,3,"Arto 24 v, Juuso 11 v","Arto 11 v, Juuso 24 v","Teppo 24 km, Juuso 6 km","Teppo 12 €, Arto 24 €","Teppo 24 km, Juuso 48 km","Teppo 12, Arto 3 ja Juuso 16",3,"13 lasten, 11 aikuisten",3,null,null,null,null,null,null,null,null,null,null,null,null,null,null,3,5]
[null,null,null,null,null,null,null,null,null,null,null,null,null,null,null,null,null,null,null,null,null,null,null,null,null,null,null,null,null,null,null,null,null,null,null,null,null,null,null,9,9,9,27,9,"Aki 21 v, Esa 9 v","Aki 9 v, Esa 21 v","Mika 21 km, Esa 3 km","Mika 63 €, Aki 27 €","Mika 21 km, Esa 9 km","Mika 63, Aki 9 ja Esa 21",9,"12 lasten, 9 aikuisten",9,null,null,null,null,null,null,null,null,null,null,null,null,null,null,4,6]
[null,null,null,null,null,null,null,null,null,null,null,null,null,null,null,null,null,null,null,null,null,null,null,null,null,null,null,null,null,null,null,null,null,null,null,null,null,null,null,-5,-5,-5,10,-5,"Mari 25 v, Oona 11 v","Mari 11 v, Oona 25 v","Maija 10 km, Oona 2 km","Maija 25 €, Mari 10 €","Maija 10 km, Oona 4 km","Maija 25, Mari 5 ja Oona 19",5,"14 lasten, 11 aikuisten",-5,null,null,null,null,null,null,null,null,null,null,null,null,null,null,4,5]
[null,null,null,null,null,null,null,null,null,null,null,null,null,null,null,null,null,null,null,null,null,null,null,null,null,null,null,null,null,null,null,null,null,null,null,null,null,null,null,-5,-5,-5,-30,-5,"Tiina 40 v, Juuso 20 v","Tiina 20 v, Juuso 40 v","Kari 12 km, Juuso 6 km","Kari 10 €, Tiina 40 €","Kari 12 km, Juuso 48 km","Kari 10, Tiina 5 ja Juuso 25",5,"20 lasten, 20 aikuisten",-5,null,null,null,null,null,null,null,null,null,null,null,null,null,null,8,4]
[null,null,null,null,null,null,null,null,null,null,null,null,null,null,null,null,null,null,null,null,null,null,null,null,null,null,null,null,null,null,null,null,null,null,null,null,null,null,null,-1,-1,-1,8,-1,"Tiina 10 v, Jori 7 v","Tiina 7 v, Jori 10 v","Kari 64 km, Jori 8 km","Kari 8 €, Tiina 7 €","Kari 64 km, Jori 56 km","Kari 8, Tiina 1 ja Jori 4",1,"3 lasten, 7 aikuisten",-1,null,null,null,null,null,null,null,null,null,null,null,null,null,null,5,5]
[null,null,null,null,null,null,null,null,null,null,null,null,null,null,null,null,null,null,null,null,null,null,null,null,null,null,null,null,null,null,null,null,null,null,null,null,null,null,null,-10,-10,-10,-40,-10,"Tiina 30 v, Juuso 11 v","Tiina 11 v, Juuso 30 v","Maija 24 km, Juuso 4 km","Maija 60 €, Tiina 70 €","Maija 24 km, Juuso 28 km","Maija 60, Tiina 10 ja Juuso 29",10,"19 lasten, 11 aikuisten",-10,null,null,null,null,null,null,null,null,null,null,null,null,null,null,5,4]
[null,null,null,null,null,null,null,null,null,null,null,null,null,null,null,null,null,null,null,null,null,null,null,null,null,null,null,null,null,null,null,null,null,null,null,null,null,null,null,-2,-2,-2,12,-2,"Aki 24 v, Asta 13 v","Aki 13 v, Asta 24 v","Maija 36 km, Asta 6 km","Maija 12 €, Aki 12 €","Maija 36 km, Asta 36 km","Maija 12, Aki 2 ja Asta 13",2,"11 lasten, 13 aikuisten",-2,null,null,null,null,null,null,null,null,null,null,null,null,null,null,5,5]
[null,null,null,null,null,null,null,null,null,null,null,null,null,null,null,null,null,null,null,null,null,null,null,null,null,null,null,null,null,null,null,null,null,null,null,null,null,null,null,9,9,9,-72,9,"Siru 4 v, Oona 1 v","Siru 1 v, Oona 4 v","Kari 16 km, Oona 8 km","Kari 18 €, Siru 18 €","Kari 16 km, Oona 16 km","Kari 18, Siru 9 ja Oona 12",9,"3 lasten, 1 aikuisten",9,null,null,null,null,null,null,null,null,null,null,null,null,null,null,8,4]
[null,null,null,null,null,null,null,null,null,null,null,null,null,null,null,null,null,null,null,null,null,null,null,null,null,null,null,null,null,null,null,null,null,null,null,null,null,null,null,4,4,4,36,4,"Siru 33 v, Iina 15 v","Siru 15 v, Iina 33 v","Mika 72 km, Iina 9 km","Mika 32 €, Siru 8 €","Mika 72 km, Iina 18 km","Mika 32, Siru 4 ja Iina 22",4,"18 lasten, 15 aikuisten",4,null,null,null,null,null,null,null,null,null,null,null,null,null,null,5,8]